[Event "Vojvodina Open 2024-A 2024"]
[Site "Novi Sad"]
[Date "2024.06.29"]
[Round "7.12"]
[White "Ashvath Mittal"]
[Black "Ljepic, Andrej"]
[Result "1-0"]
[ECO "B39"]
[WhiteElo "1986"]
[BlackElo "2267"]
[Annotator "RC"]
[PlyCount "125"]
[EventDate "2024.06.03"]
[EventType "swiss"]
[EventCountry "SRB"]
[SourceTitle "playchess.com"]
[Source "ChessBase"]
[SourceQuality "1"]
[TimeControl "40/5400+30:900+30"]

1. e4 {[%emt 0:00:02]} c5 {[%emt 0:16:36]} 2. Nf3 {[%emt 0:00:02]} Nc6 {[%emt 0:00:37]} 3. d4 {[%emt 0:00:02]} cxd4 {[%emt 0:00:08]} 4. Nxd4 {[%emt 0:00:05]} g6 {[%emt 0:00:05]} 5. c4 {[%emt 0:00:02]} Bg7 {[%emt 0:00:05]} 6. Be3 {[%emt 0:00:05]} Nf6 {[%emt 0:00:04]} 7. Nc3 {[%emt 0:00:05]} Ng4 {[%emt 0:00:04]} 8. Qxg4 {[%emt 0:00:08]} Nxd4 {[%emt 0:00:05]} 9. Qd1 {[%emt 0:02:47]} Ne6 {[%emt 0:00:04]} 10. Qd2 {[%emt 0:02:20]} Qa5 {[%emt 0:00:05]} 11. Bd3 {[%emt 0:05:16]} Bxc3 {[%emt 0:00:44]} 12. bxc3 {[%emt 0:00:28]} b6 {[%emt 0:00:32]} 13. O-O {[%emt 0:02:11]} Ba6 {[%emt 0:07:32]} 14. Rfd1 {[%emt 0:04:31]} d6 {[%emt 0:00:37]} 15. f4 {[%emt 0:01:13]} Rc8 {[%emt 0:01:29]} 16. f5 {[%emt 0:00:39]} Nf8 {[%emt 0:04:29]} 17. Bd4 {[%emt 0:03:34]} f6 {[%emt 0:01:31]} 18. Kh1 {[%emt 0:14:57]} Bxc4 {[%emt 0:05:51]} 19. Bc2 {[%emt 0:04:14]} Qa6 {[%emt 0:06:17]} 20. Re1 {[%emt 0:12:20]} g5 {[%emt 0:02:02]} 21. Bxf6 {[%emt 0:03:47]} exf6 {[%emt 0:02:30]} 22. Qxd6 {[%emt 0:02:24]} Nd7 {[%emt 0:02:07]} 23. e5 {[%emt 0:00:38]} Qb5 {[%emt 0:05:21]} 24. exf6+ {[%emt 0:01:48]} Kd8 {[%emt 0:00:06]} 25. Rad1 {[%emt 0:02:34]} Rc5 {[%emt 0:02:36]} 26. Qb8+ {[%emt 0:13:23]} Rc8 {[%emt 0:00:15]} 27. Qd6 {[%emt 0:00:17]} Rc5 {[%emt 0:00:32]} 28. f7 {[%emt 0:04:23]} Rd5 {[%emt 0:00:50]} 29. Rxd5 {[%emt 0:00:02]} Bxd5 {[%emt 0:02:38]} 30. Rd1 {[%emt 0:00:22]} Bxg2+ {[%emt 0:03:18]} 31. Kg1 {[%emt 0:03:22]} Kc8 {[%emt 0:02:18]} 32. Qd4 {[%emt 0:02:46]} Ne5 {[%emt 0:03:06]} 33. Kxg2 {[%emt 0:02:21]} Qe2+ {[%emt 0:00:25]} 34. Qf2 {[%emt 0:00:11]} Qxf2+ {[%emt 0:03:44]} 35. Kxf2 {[%emt 0:00:02]} Nxf7 {[%emt 0:00:58]} 36. Bb3 {[%emt 0:00:02]} Nh6 {[%emt 0:01:20]} 37. Be6+ {[%emt 0:00:04]} Kc7 {[%emt 0:00:09]} 38. Kg3 {[%emt 0:00:34]} Rf8 {[%emt 0:01:12]} 39. Rd5 {[%emt 0:00:15]} Kc6 {[%emt 0:00:23]} 40. c4 {[%emt 0:00:00]} a6 {[%emt 0:00:00]} 41. a4 {[%emt 0:00:21]} a5 {[%emt 0:02:12]} 42. h4 {[%emt 0:02:13]} gxh4+ {[%emt 0:00:34]} 43. Kxh4 {[%emt 0:00:03]} Nf7 {[%emt 0:01:48]} 44. Bxf7 {[%emt 0:02:27]} Rxf7 {[%emt 0:00:02]} 45. Kg5 {[%emt 0:00:12]} Rg7+ {[%emt 0:00:39]} 46. Kf4 {[%emt 0:01:28]} Rf7 {[%emt 0:01:53]} 47. Re5 {[%emt 0:04:42]} Kd6 {[%emt 0:02:03]} 48. Re6+ {[%emt 0:01:56]} Kc5 {[%emt 0:00:13]} 49. f6 {[%emt 0:00:07]} Rb7 {[%emt 0:05:21]} 50. Re7 {[%emt 0:00:02]} Rb8 {[%emt 0:00:07]} 51. f7 {[%emt 0:00:03]} Rf8 {[%emt 0:00:17]} 52. Kg5 {[%emt 0:00:51]} Kxc4 {[%emt 0:00:55]} 53. Kf6 {[%emt 0:01:21]} b5 {[%emt 0:02:07]} 54. Re4+ {[%emt 0:02:08]} Kd3 {[%emt 0:00:41]} 55. Re5 {[%emt 0:00:45]} b4 {[%emt 0:01:21]} 56. Rxa5 {[%emt 0:00:07]} b3 {[%emt 0:00:35]} 57. Rb5 {[%emt 0:00:03]} Kc4 {[%emt 0:00:50]} 58. Kg7 {[%emt 0:00:09]} Ra8 {[%emt 0:00:22]} 59. f8=Q {[%emt 0:00:12]} Rxf8 {[%emt 0:00:06]} 60. Kxf8 {[%emt 0:00:09]} h5 {[%emt 0:00:08]} 61. Rxh5 {[%emt 0:00:09]} Kb4 {[%emt 0:00:19]} 62. a5 {[%emt 0:00:44]} b2 {[%emt 0:00:17]} 63. Rh1 {[%emt 0:00:03]} 1-0

[Event "Vojvodina Open 2024-A 2024"]
[Site "Novi Sad"]
[Date "2024.06.29"]
[Round "7.13"]
[White "Sakmak, Kutay"]
[Black "Popchev, Milko"]
[Result "1-0"]
[ECO "C41"]
[WhiteElo "1993"]
[BlackElo "2159"]
[Annotator "RC"]
[PlyCount "115"]
[EventDate "2024.06.03"]
[EventType "swiss"]
[EventCountry "SRB"]
[SourceTitle "playchess.com"]
[Source "ChessBase"]
[SourceQuality "1"]
[TimeControl "40/5400+30:900+30"]

1. e4 {[%emt 1:31:00]} e5 {[%emt 0:14:48]} 2. Nf3 {[%emt 0:00:00]} d6 {[%emt 0:00:10]} 3. d4 {[%emt 0:00:00]} exd4 {[%emt 0:00:10]} 4. Qxd4 {[%emt 0:00:00]} Nf6 {[%emt 0:00:15]} 5. Nc3 {[%emt 0:00:00]} Be7 {[%emt 0:00:18]} 6. Bf4 {[%emt 0:00:00]} O-O {[%emt 0:01:24]} 7. O-O-O {[%emt 0:00:00]} Nc6 {[%emt 0:00:34]} 8. Qd2 {[%emt 0:00:00]} Nd7 {[%emt 0:02:19]} 9. Nd5 {[%emt 0:00:00]} Nb6 {[%emt 0:01:38]} 10. Bb5 {[%emt 0:00:00]} Bg4 {[%emt 0:03:48]} 11. Ne3 {[%emt 0:00:00]} Bxf3 {[%emt 0:03:01]} 12. gxf3 {[%emt 0:00:00]} Bf6 {[%emt 0:00:12]} 13. c3 {[%emt 0:00:00]} Ne5 {[%emt 0:00:43]} 14. Be2 {[%emt 0:00:00]} Bg5 {[%emt 0:02:10]} 15. Nf5 {[%emt 0:00:00]} Bxf4 {[%emt 0:00:41]} 16. Qxf4 {[%emt 0:00:00]} Kh8 {[%emt 0:01:41]} 17. Rdg1 {[%emt 0:00:00]} g6 {[%emt 0:02:44]} 18. Qh6 {[%emt 0:00:00]} Rg8 {[%emt 0:01:29]} 19. Ne3 {[%emt 0:00:00]} Qf8 {[%emt 0:03:56]} 20. Qf4 {[%emt 0:00:00]} f6 {[%emt 0:00:32]} 21. h4 {[%emt 0:00:00]} Qf7 {[%emt 0:00:34]} 22. Kb1 {[%emt 0:00:00]} Raf8 {[%emt 0:01:51]} 23. h5 {[%emt 0:00:00]} g5 {[%emt 0:00:45]} 24. Qh2 {[%emt 0:00:00]} Nbc4 {[%emt 0:00:58]} 25. Nf1 {[%emt 0:00:00]} f5 {[%emt 0:01:27]} 26. f4 {[%emt 0:00:00]} gxf4 {[%emt 0:00:38]} 27. Rxg8+ {[%emt 0:00:00]} Rxg8 {[%emt 0:00:40]} 28. Qxf4 {[%emt 0:00:00]} Rf8 {[%emt 0:01:34]} 29. b3 {[%emt 0:00:00]} Nb6 {[%emt 0:00:16]} 30. Ne3 {[%emt 0:00:00]} fxe4 {[%emt 0:02:37]} 31. Qxe4 {[%emt 0:00:00]} c6 {[%emt 0:01:56]} 32. Qd4 {[%emt 0:00:00]} Qf6 {[%emt 0:01:12]} 33. Rd1 {[%emt 0:00:00]} d5 {[%emt 0:00:57]} 34. h6 {[%emt 0:00:00]} Ng6 {[%emt 0:02:28]} 35. Ng4 {[%emt 0:00:00]} Qxd4 {[%emt 0:00:20]} 36. cxd4 {[%emt 0:00:00]} Nc8 {[%emt 0:02:08]} 37. Bd3 {[%emt 0:00:00]} Nf4 {[%emt 0:00:44]} 38. Bc2 {[%emt 0:00:00]} Ne6 {[%emt 0:02:37]} 39. Kb2 {[%emt 0:00:00]} Nd6 {[%emt 0:00:22]} 40. Re1 {[%emt 0:00:00]} Nxd4 {[%emt 0:00:00]} 41. Re7 {[%emt 0:00:00]} Rf7 {[%emt 0:07:01]} 42. Re5 {[%emt 0:00:27]} Kg8 {[%emt 0:01:43]} 43. Rg5+ {[%emt 0:01:07]} Kf8 {[%emt 0:00:25]} 44. Bb1 {[%emt 0:02:05]} Ne6 {[%emt 0:01:20]} 45. Rh5 {[%emt 0:02:50]} Ke7 {[%emt 0:00:39]} 46. f3 {[%emt 0:04:02]} Nf4 {[%emt 0:04:42]} 47. Rg5 {[%emt 0:00:00]} Kf8 {[%emt 0:01:38]} 48. Ne5 {[%emt 0:01:47]} Re7 {[%emt 0:00:13]} 49. Ng4 {[%emt 0:02:41]} d4 {[%emt 0:02:38]} 50. Nf6 {[%emt 0:05:05]} Re2+ {[%emt 0:01:52]} 51. Kc1 {[%emt 0:00:44]} Rh2 {[%emt 0:03:35]} 52. Nxh7+ {[%emt 0:00:23]} Ke7 {[%emt 0:00:09]} 53. Rg7+ {[%emt 0:00:41]} Kd8 {[%emt 0:03:49]} 54. Nf6 {[%emt 0:01:11]} Rh1+ {[%emt 0:02:25]} 55. Kb2 {[%emt 0:00:47]} Rh2+ {[%emt 0:00:30]} 56. Ka1 {[%emt 0:01:20]} Nb5 {[%emt 0:06:37]} 57. h7 {[%emt 0:01:11]} d3 {[%emt 0:08:47]} 58. Ne4 {[%emt 0:02:49]} 1-0

[Event "Vojvodina Open 2024-A 2024"]
[Site "Novi Sad"]
[Date "2024.06.29"]
[Round "7.14"]
[White "Pasa, Ahmet"]
[Black "Arvind Ramnath Iyer"]
[Result "1-0"]
[ECO "B27"]
[WhiteElo "2056"]
[BlackElo "1872"]
[Annotator "RC"]
[PlyCount "85"]
[EventDate "2024.06.03"]
[EventType "swiss"]
[EventCountry "SRB"]
[SourceTitle "playchess.com"]
[Source "ChessBase"]
[SourceQuality "1"]
[TimeControl "40/5400+30:900+30"]

1. e4 {[%emt 0:00:04]} c5 {[%emt 0:00:05]} 2. Nc3 {[%emt 0:00:17]} g6 {[%emt 0:00:05]} 3. d4 {[%emt 0:00:48]} cxd4 {[%emt 0:00:07]} 4. Qxd4 {[%emt 0:00:14]} Nf6 {[%emt 0:00:04]} 5. Nf3 {[%emt 0:03:45]} Nc6 {[%emt 0:00:08]} 6. Qa4 {[%emt 0:01:31]} d6 {[%emt 0:00:12]} 7. e5 {[%emt 0:00:23]} dxe5 {[%emt 0:00:26]} 8. Nxe5 {[%emt 0:00:02]} Bg7 {[%emt 0:04:46]} 9. Bb5 {[%emt 0:07:45]} O-O {[%emt 0:07:11]} 10. Nxc6 {[%emt 0:01:34]} bxc6 {[%emt 0:00:04]} 11. Bxc6 {[%emt 0:02:18]} Rb8 {[%emt 0:01:56]} 12. O-O {[%emt 0:09:42]} Qc7 {[%emt 0:08:44]} 13. Bf3 {[%emt 0:09:56]} Bd7 {[%emt 0:03:01]} 14. Qa3 {[%emt 0:09:07]} Bf5 {[%emt 0:00:15]} 15. Bg5 {[%emt 0:01:06]} Rfc8 {[%emt 0:08:19]} 16. Rac1 {[%emt 0:17:51]} h6 {[%emt 0:10:49]} 17. Bh4 {[%emt 0:00:27]} Qb6 {[%emt 0:07:48]} 18. Bxf6 {[%emt 0:13:44]} Bxf6 {[%emt 0:00:06]} 19. Nd5 {[%emt 0:00:22]} Qxb2 {[%emt 0:00:10]} 20. Nxe7+ {[%emt 0:00:22]} Bxe7 {[%emt 0:00:03]} 21. Qxe7 {[%emt 0:00:06]} Be6 {[%emt 0:00:04]} 22. Qxa7 {[%emt 0:00:40]} Qxa2 {[%emt 0:00:09]} 23. Qxa2 {[%emt 0:03:27]} Bxa2 {[%emt 0:00:02]} 24. Be2 {[%emt 0:00:45]} Rc3 {[%emt 0:00:28]} 25. Bd3 {[%emt 0:00:30]} Rbc8 {[%emt 0:02:38]} 26. Rfd1 {[%emt 0:02:58]} Bb3 {[%emt 0:02:47]} 27. Rd2 {[%emt 0:02:32]} Rd8 {[%emt 0:01:19]} 28. Rcd1 {[%emt 0:00:55]} Ba4 {[%emt 0:00:05]} 29. Be4 {[%emt 0:00:48]} Rdc8 {[%emt 0:02:10]} 30. Rd8+ {[%emt 0:00:38]} Rxd8 {[%emt 0:00:38]} 31. Rxd8+ {[%emt 0:00:01]} Kg7 {[%emt 0:00:06]} 32. Rd2 {[%emt 0:00:16]} Bb5 {[%emt 0:00:28]} 33. f3 {[%emt 0:00:39]} f5 {[%emt 0:01:28]} 34. Bd3 {[%emt 0:00:10]} Ba4 {[%emt 0:00:52]} 35. Kf2 {[%emt 0:00:34]} Kf6 {[%emt 0:00:05]} 36. Re2 {[%emt 0:01:22]} g5 {[%emt 0:00:31]} 37. Ke3 {[%emt 0:00:29]} f4+ {[%emt 0:04:21]} 38. Kd4 {[%emt 0:00:58]} Rc7 {[%emt 0:00:03]} 39. c4 {[%emt 0:00:37]} h5 {[%emt 0:00:27]} 40. Ra2 {[%emt 0:00:00]} Rd7+ {[%emt 0:00:00]} 41. Kc3 {[%emt 0:03:11]} Bd1 {[%emt 0:02:39]} 42. Ra6+ {[%emt 0:00:18]} Ke7 {[%emt 0:00:50]} 43. Ra1 {[%emt 0:01:50]} 1-0

[Event "Vojvodina Open 2024-A 2024"]
[Site "Novi Sad"]
[Date "2024.06.29"]
[Round "7.15"]
[White "Prieb, Robert"]
[Black "Sahbudak, Baris Cinar"]
[Result "0-1"]
[ECO "A34"]
[WhiteElo "2137"]
[BlackElo "1941"]
[Annotator "RC"]
[PlyCount "36"]
[EventDate "2024.06.03"]
[EventType "swiss"]
[EventCountry "SRB"]
[SourceTitle "playchess.com"]
[Source "ChessBase"]
[SourceQuality "1"]
[TimeControl "40/5400+30:900+30"]

1. Nf3 {[%emt 0:00:03]} c5 {[%emt 0:00:42]} 2. c4 {[%emt 0:00:08]} g6 {[%emt 0:00:28]} 3. Nc3 {[%emt 0:01:01]} Bg7 {[%emt 0:00:38]} 4. e3 {[%emt 0:01:08]} Nf6 {[%emt 0:04:51]} 5. b3 {[%emt 0:00:46]} d5 {[%emt 0:02:26]} 6. d4 {[%emt 0:00:47]} Nc6 {[%emt 0:04:01]} 7. h3 {[%emt 0:02:50]} Ne4 {[%emt 0:09:14]} 8. Bb2 {[%emt 0:07:26]} Qa5 {[%emt 0:17:49]} 9. Rc1 {[%emt 0:03:54]} cxd4 {[%emt 0:12:07]} 10. Nxd4 {[%emt 0:03:38]} O-O {[%emt 0:05:47]} 11. cxd5 {[%emt 0:08:21]} Nxd4 {[%emt 0:03:48]} 12. exd4 {[%emt 0:00:09]} Bh6 {[%emt 0:03:22]} 13. Rc2 {[%emt 0:01:36]} Bf5 {[%emt 0:02:46]} 14. Bd3 {[%emt 0:13:49]} Rac8 {[%emt 0:01:39]} 15. Qa1 {[%emt 0:02:13]} Nxc3 {[%emt 0:02:29]} 16. Bxc3 {[%emt 0:00:22]} Bxd3 {[%emt 0:00:59]} 17. Bxa5 {[%emt 0:00:08]} Rxc2 {[%emt 0:00:06]} 18. Kd1 {[%emt 0:00:08]} Rfc8 {[%emt 0:00:13]} 0-1

[Event "Vojvodina Open 2024-A 2024"]
[Site "Novi Sad"]
[Date "2024.06.29"]
[Round "7.16"]
[White "Rindhiya V"]
[Black "Anakok, Deniz"]
[Result "0-1"]
[ECO "C73"]
[WhiteElo "1965"]
[BlackElo "1819"]
[Annotator "NA RC"]
[PlyCount "89"]
[EventDate "2024.06.03"]
[EventType "swiss"]
[EventCountry "SRB"]
[SourceTitle "playchess.com"]
[Source "ChessBase"]
[SourceQuality "1"]
[TimeControl "40/5400+30:900+30"]

1. e4 {[%emt 0:00:44]} e5 {[%emt 0:00:17]} 2. Nf3 {[%emt 0:00:07]} Nc6 {[%emt 0:00:05]} 3. Bb5 {[%emt 0:00:48]} a6 {[%emt 0:00:09]} 4. Ba4 {[%emt 0:00:04]} d6 {[%emt 0:00:07]} 5. Bxc6+ {[%emt 0:00:32]} bxc6 {[%emt 0:00:05]} 6. d4 {[%emt 0:00:08]} exd4 {[%emt 0:01:19]} 7. Qxd4 {[%emt 0:00:38]} Nf6 {[%emt 0:09:29] is now debated instead of 7...c5. C73: Ruy Lopez: Deferred Steinitz: 5 Bxc6+.} 8. e5 {[%emt 0:14:00]} c5 {[%emt 0:01:27]} 9. Qd3 {[%emt 0:01:37]} dxe5 {[%emt 0:03:36]} 10. Qxd8+ {[%emt 0:00:04]} Kxd8 {[%emt 0:00:07]} 11. Nxe5 {[%emt 0:00:05]} Be6 {[%emt 0:01:18]} 12. Nc3 {[%emt 0:04:05]} Bd6 {[%emt 0:05:46]} 13. Nd3 {[%emt 0:01:57]} c4 $146 {[%emt 0:03:22]} ({Predecessor:} 13... Re8 14. O-O Rb8 15. b3 c4 16. Nf4 Bf5 17. bxc4 Ne4 18. Rb1 Rxb1 19. Nxb1 Nc5 20. Nc3 Bxc2 21. Be3 {½-½ Huang,R (2446)-Xu,Z (2489) CHN-chT Div-A Rapid 2022 (5.5)}) 14. Nf4 {[%emt 0:01:27]} Bf5 {[%emt 0:00:19]} 15. Be3 {[%emt 0:08:09]} Bxc2 {[%emt 0:05:49]} 16. Rc1 {[%emt 0:00:59]} Bf5 {[%emt 0:01:15]} 17. Nd1 {[%emt 0:09:40]} Re8 {[%emt 0:11:11]} 18. Rxc4 {[%emt 0:01:51]} Ng4 {[%emt 0:53:49]} 19. O-O {[%emt 0:14:01]} g5 {[%emt 0:00:00]} 20. Nd5 {[%emt 0:00:13]} Nxe3 {[%emt 0:00:00]} 21. N1xe3 {[%emt 0:15:28]} Bd3 {[%emt 0:00:00]} 22. Rd1 {[%emt 0:07:21]} Bxc4 {[%emt 0:00:00]} 23. Nxc4 {[%emt 0:00:02]} Re6 {[%emt 0:00:00]} 24. f4 {[%emt 0:00:22]} gxf4 {[%emt 0:00:00]} 25. b3 {[%emt 0:00:03]} f3 {[%emt 0:00:00]} 26. gxf3 {[%emt 0:01:04]} Kd7 {[%emt 0:00:00]} 27. Rd2 {[%emt 0:06:09]} Rg8+ {[%emt 0:00:00]} 28. Kf1 {[%emt 0:00:58]} Kc8 {[%emt 0:00:00]} 29. Nxd6+ {[%emt 0:04:28]} cxd6 {[%emt 0:00:00]} 30. Rc2+ {[%emt 0:00:02]} Kb8 {[%emt 0:00:00]} 31. Nc7 {[%emt 0:00:24]} Rf6 {[%emt 0:00:00]} 32. Nxa6+ {[%emt 0:02:59]} Kb7 {[%emt 0:00:00]} 33. Nb4 {[%emt 0:00:02]} Rxf3+ {[%emt 0:00:00]} 34. Ke1 {[%emt 0:00:12]} Rg4 {[%emt 0:00:00]} 35. Nd5 {[%emt 0:01:10]} Re4+ {[%emt 0:00:00]} 36. Re2 {[%emt 0:00:23]} Rxe2+ {[%emt 0:00:00]} 37. Kxe2 {[%emt 0:00:02]} Rh3 {[%emt 0:00:00]} 38. Nb4 {[%emt 0:00:29]} Rxh2+ {[%emt 0:00:00]} (38... h5 $142 39. Kf2 Rh4 (39... Rxh2+ $2 40. Kf3 $19)) 39. Kd3 $19 {[%emt 0:00:03]} h5 {[%emt 0:00:00]} 40. a4 {[%emt 0:00:00]} h4 {[%emt 0:00:00]} 41. a5 {[%emt 0:00:14]} h3 {[%emt 0:00:00]} 42. a6+ {[%emt 0:00:12]} Ka7 {[%emt 0:00:00]} 43. Kc4 {[%emt 0:00:02]} Rc2+ {[%emt 0:00:00]} 44. Nxc2 {[%emt 0:00:19]} h2 {[%emt 0:00:00]} 45. Kd4 {[%emt 0:24:23]} 0-1